fUST/lending_fUST_20240125
["ID","MTS","AMOUNT","RATE_DAILY","PERIOD"]
[312668637,1706142638652,-500.0,0.00020834,2]
[312668638,1706142638661,-500.0,0.00020834,2]
[312668639,1706142638670,-543.19897174,0.00020834,2]
[312668641,1706142638679,-500.0,0.00020834,2]
[312668643,1706142638689,-500.0,0.00020834,2]
[312668645,1706142638698,-500.0,0.00020834,2]
[312668647,1706142638707,-500.0,0.00020834,2]
[312668649,1706142638716,-500.0,0.00020834,2]
[312668651,1706142638725,-238.31842393,0.00020834,2]
[312668653,1706142638735,-500.0,0.00020834,2]
[312668655,1706142638744,-500.0,0.00020834,2]
[312668657,1706142638753,-500.0,0.00020834,2]
[312668659,1706142638763,-500.0,0.00020834,2]
[312668661,1706142638773,-500.0,0.00020834,2]
[312668663,1706142638782,-362.17143186,0.00020834,2]
[312668665,1706142638795,-500.0,0.00020834,2]
[312668667,1706142638804,-500.0,0.00020834,2]
[312668669,1706142638814,-500.0,0.00020834,2]
[312668671,1706142638823,-500.0,0.00020834,2]
[312668673,1706142638832,-500.0,0.00020834,2]
[312668675,1706142638841,-500.0,0.00020834,2]
[312668677,1706142638850,-500.0,0.00020834,2]
[312668679,1706142638860,-500.0,0.00020834,2]
[312668681,1706142638869,-500.0,0.00020834,2]
[312668683,1706142638879,-366.08217038,0.00020834,2]
[312668685,1706142638888,-500.0,0.00020834,2]
[312668687,1706142638897,-500.0,0.00020834,2]
[312668689,1706142638907,-155.77243121,0.00020835,2]
[312668692,1706142638917,-2836.67729407,0.00020835,2]
[312668693,1706142638927,-156.54818831,0.00020835,2]
[312668696,1706142638936,-11560.2133615,0.00020835,2]
[312668698,1706142638945,-644.40876473,0.00020835,2]
[312668699,1706142638956,-267.98689299,0.00020835,2]
[312668701,1706142638965,-193.33123141,0.00020835,2]
[312668704,1706142638974,-198.35421752,0.00020835,2]
[312668706,1706142638983,-309.69031278,0.00020835,2]
[312668707,1706142638992,-685.07842528,0.00020836,2]
[312668709,1706142639001,-11724.55601252,0.00020836,2]
[312668712,1706142639011,-2084.95173309,0.00021815,2]
[312668714,1706142639021,-1826.50328437,0.00021815,2]
[312668716,1706142639030,-171.430079,0.00021918,2]
[312668718,1706142639039,-426.10577832,0.00022,2]
[312668720,1706142639048,-2201.83954728,0.0002227,2]
[312668722,1706142639057,-171.430079,0.00022559,2]
[312668724,1706142639066,-171.430079,0.000232,2]
[312668725,1706142639075,-171.430079,0.00023841,2]
[312668727,1706142639084,-155.18853269,0.0002437,2]
[312668729,1706142639093,-171.430079,0.00024482,2]
[312668731,1706142639102,-262.56205314,0.00025,2]
[312668733,1706142639111,-7384.14849766,0.00025,2]
[312668735,1706142639121,-4724.75315233,0.00025,2]
[312668737,1706142639130,-237.74153663,0.00026125,2]
[312668739,1706142639139,-289.86304104,0.00026125,2]
[312668741,1706142639148,-876.60031792,0.00026125,2]
[312668743,1706142639157,-154.92253873,0.00026125,2]
[312668746,1706142639166,-154.86062544,0.00026125,2]
[312668748,1706142639175,-154.95348919,0.00026125,2]
[312668750,1706142639184,-175.26340057,0.00026125,2]
[312668752,1706142639194,-178.19682148,0.00026125,2]
[312668754,1706142639203,-2816.00267882,0.00026125,2]
[312668756,1706142639212,-236.6961873,0.00026125,2]
[312668757,1706142639221,-187.90145299,0.00026125,2]
[312668759,1706142639230,-1320.80319943,0.00026125,2]
[312668761,1706142639239,-202.89749106,0.00026125,2]
[312668763,1706142639248,-326.75620635,0.00026125,2]
[312668765,1706142639257,-301.93072688,0.00026125,2]
[312668767,1706142639266,-211.59032414,0.00026125,2]
[312668770,1706142639277,-154.89162849,0.00026125,2]
[312668771,1706142639286,-154.87609912,0.00026125,2]
[312668773,1706142639295,-818.67757888,0.00026125,2]
[312668775,1706142639304,-309.32455563,0.00026125,2]
[312668777,1706142639313,-154.95380821,0.00026125,2]
[312668779,1706142639322,-225.19634411,0.00026125,2]
[312668790,1706142639410,-2478.15575317,0.00026125,2]
[312668792,1706142639419,-154.98450155,0.00026126,2]
[312668794,1706142639428,-19553.16458423,0.00026126,2]
[312668796,1706142639437,-500.0,0.00026127,2]
[312668798,1706142639446,-620.66988602,0.00026127,2]
[312668800,1706142639455,-500.0,0.00026127,2]
[312668802,1706142639464,-500.0,0.00026127,2]
[312668804,1706142639473,-500.0,0.00026127,2]
[312668806,1706142639482,-500.0,0.00026127,2]
[312668808,1706142639492,-500.0,0.00026127,2]
[312668810,1706142639501,-361.69736774,0.00026127,2]
[312668812,1706142639510,-500.0,0.00026127,2]
[312668815,1706142639520,-500.0,0.00026127,2]
[312668816,1706142639529,-500.0,0.00026127,2]
[312668818,1706142639538,-169.16418008,0.00026127,2]
[312668820,1706142639547,-3234.62807781,0.00026128,2]
[312668822,1706142639556,-36068.32558594,0.00026128,2]
[312668824,1706142639566,-14086.15729524,0.00026128,2]
[312668827,1706142639576,-4026.6074575,0.00026128,2]
[312668828,1706142639585,-2201.83954728,0.0002727,2]
[312668830,1706142639594,-500.0,0.00027397,2]
[312668832,1706142639604,-1232.72,0.00027397,3]
[312668834,1706142639613,-1360.37,0.00027397,3]
[312668836,1706142639622,-2123.99,0.00027397,3]
[312668838,1706142639632,-1769.99,0.00027397,3]
[312668840,1706142639641,-500.0,0.00027534,2]
[312668842,1706142639650,-341.58878795,0.00028604,2]
[312668844,1706142639659,-1942.40988753,0.00029,2]
[312668847,1706142639668,-155.0,0.00029,2]
[312668848,1706142639678,-21686.1459775,0.000295,2]
[312668850,1706142639687,-286.76687185,0.00029649,2]
[312668852,1706142639696,-2436.5578093,0.0002979,7]
[312668854,1706142639705,-2474.91045337,0.00029798,2]
[312668856,1706142639714,-1293.76681809,0.00029798,2]
[312668858,1706142639724,-903.63325516,0.00029798,2]
[312668860,1706142639733,-595.13721922,0.00029798,2]
[312668862,1706142639742,-260.87494487,0.00029798,2]
[312668864,1706142639751,-680.10116762,0.00029798,2]
[312668866,1706142639761,-154.9690062,0.00029798,2]
[312668868,1706142639771,-679.71377977,0.00029798,2]
[312668870,1706142639780,-154.9690062,0.00029798,2]
[312668872,1706142639792,-124207.30068042,0.000298,2]
[312668874,1706142639801,-151.0,0.000298,2]
[312668876,1706142639810,-151.0,0.000298,2]
[312668878,1706142639819,-154.86062544,0.0003,4]
[312668880,1706142639828,-2196.43554395,0.0003,2]
[312668882,1706142639838,-243.2070347,0.0003,4]
[312668884,1706142639847,-231.21398044,0.0003,4]
[312668886,1706142639856,-139234.85869816,0.0003,4]
[312668888,1706142639866,-151.0,0.0003,2]
[312668890,1706142639875,-151.0,0.0003,2]
[312668892,1706142639884,-151.0,0.0003,2]
[312668894,1706142639892,-298.979928,0.0003,2]
[312668896,1706142639903,-298.979928,0.0003,2]
[312668898,1706142639912,-1587.095918,0.0003,2]
[312668900,1706142639921,-1587.095918,0.0003,2]
[312668902,1706142639930,-208.4755949,0.00030137,2]
[312668904,1706142639939,-169.122159,0.00030137,2]
[312668906,1706142639948,-169.122159,0.00030137,2]
[312668908,1706142639957,-158.273752,0.00030137,2]
[312668910,1706142639966,-161.3011265,0.00031,4]
[312668912,1706142639975,-14000.0,0.00032,2]
[312668914,1706142639984,-2201.83954728,0.0003227,2]
[312668916,1706142639994,-16000.0,0.00033,7]
[312668918,1706142640002,-1551.37467146,0.00034,3]
[312668920,1706142640011,-177.0772953,0.00034247,2]
[312668922,1706142640022,-333.39122483,0.00035,4]
[312668924,1706142640030,-169.122159,0.00035616,2]
[312668926,1706142640039,-154.86062544,0.00036,4]
[312668928,1706142640048,-151.0,0.00036719,4]
[312668930,1706142640057,-30396.95170688,0.00037,2]
[312668932,1706142640066,-11759.33516536,0.00038,10]
[312668933,1706142640075,-151.0,0.00038272,2]
[312668935,1706142640085,-211.497645,0.00038272,2]
[312668937,1706142640094,-151.0,0.00038272,2]
[312668940,1706142640104,-151.0,0.00038272,2]
[312668941,1706142640114,-151.0,0.00038272,2]
[312668943,1706142640123,-298.979928,0.00038272,2]
[312668945,1706142640133,-298.979928,0.00038272,2]
[312668947,1706142640141,-1587.095918,0.00038272,2]
[312668949,1706142640150,-1587.095918,0.00038272,2]
[312668951,1706142640159,-19964.68206347,0.00038272,5]
[312668953,1706142640169,-150.0,0.00038629,2]
[312668955,1706142640178,-150.086,0.00038629,2]
[312668957,1706142640187,-1052.02919821,0.000395,7]
[312668959,1706142640195,-150.0,0.000395,11]
[312668961,1706142640205,-4040.09199812,0.0003999,4]
[312668963,1706142640215,-760.47051245,0.0004013,30]
[312668965,1706142640223,-154.95351395,0.0004022,4]
[312668967,1706142640232,-250.0,0.00041095,7]
[312668969,1706142640241,-500.0,0.00041095,2]
[312668971,1706142640250,-169.122159,0.00041096,2]
[312668973,1706142640259,-169.122159,0.00041096,2]
[312668975,1706142640268,-156.59077763,0.00041557,30]
[312668977,1706142640277,-152.20431378,0.00041987,30]
[312668979,1706142640287,-50000.0,0.00042043,15]
[312668981,1706142640296,-20055.10798256,0.00042186,2]
[312668983,1706142640306,-14011.98460494,0.00042457,5]
[312668985,1706142640315,-500.0,0.00042465,7]
[312668987,1706142640323,-151.0,0.00042472,7]
[312668989,1706142640333,-151.0,0.00042472,7]
[312668991,1706142640342,-151.0,0.00042472,7]
[312668993,1706142640351,-298.979928,0.00042472,7]
[312668995,1706142640360,-298.979928,0.00042472,7]
[312668997,1706142640369,-1587.095918,0.00042472,7]
[312668999,1706142640379,-1587.095918,0.00042472,7]
[312669001,1706142640388,-12722.46952834,0.00042472,4]
[312669003,1706142640396,-777.0,0.00042904,2]
[312669005,1706142640405,-1287.17016169,0.00043251,10]
[312669007,1706142640415,-150.84915085,0.00043349,2]
[312669009,1706142640424,-4772.119,0.000435,30]
[312669011,1706142640433,-154.86062544,0.00043697,4]
[312669013,1706142640442,-152.20431378,0.00043757,30]
[312669015,1706142640452,-166.93328417,0.00043812,30]
[312669017,1706142640461,-253.93194142,0.00043835,7]
[312669019,1706142640470,-152.20431378,0.00044006,30]
[312669021,1706142640479,-301.6983017,0.00044078,4]
[312669023,1706142640488,-853.09127908,0.00044081,2]
[312669025,1706142640497,-462.5226715,0.00044439,120]
[312669027,1706142640506,-5000.07552229,0.00044444,2]
[312669029,1706142640515,-232.7383,0.00044469,2]
[312669031,1706142640525,-1788.57471462,0.00044514,15]
[312669033,1706142640534,-264.26837761,0.00044514,15]
[312669035,1706142640542,-772.89269113,0.00044514,15]
[312669037,1706142640551,-541.02488379,0.00044514,15]
[312669039,1706142640560,-205.31997825,0.00044514,15]
[312669041,1706142640569,-4593.06068613,0.00044589,14]
[312669043,1706142640578,-229.45553126,0.00044589,4]
[312669045,1706142640587,-687.24707732,0.00044589,4]
[312669047,1706142640596,-1036.23341672,0.00044589,4]
[312669049,1706142640605,-1653.84155785,0.00044589,4]
[312669051,1706142640614,-310.1391981,0.00044589,2]
[312669052,1706142640623,-5453.77773352,0.00044589,2]
[312669055,1706142640633,-678.11770992,0.00044589,4]
[312669056,1706142640642,-166.94378863,0.00044589,4]
[312669058,1706142640651,-154.98449536,0.00044589,4]
[312669061,1706142640661,-294.57737238,0.00044589,4]
[312669063,1706142640671,-264.05065044,0.00044589,4]
[312669064,1706142640680,-2085.08363542,0.0004459,4]
[312669066,1706142640689,-151.0,0.00044676,7]
[312669068,1706142640698,-2731.38410131,0.00044679,2]
[312669071,1706142640708,-151.0,0.00044682,7]
[312669073,1706142640717,-151.0,0.00044682,7]
[312669074,1706142640726,-151.0,0.00044682,7]
[312669076,1706142640735,-151.0,0.00044682,7]
[312669078,1706142640745,-151.0,0.00044682,7]
[312669080,1706142640754,-151.0,0.00044682,7]
[312669082,1706142640763,-151.0,0.00044682,7]
[312669084,1706142640773,-241.615986,0.00044682,7]
[312669087,1706142640783,-1253.41868812,0.00044689,4]
[312669088,1706142640795,-271.23230235,0.00044689,4]
[312669090,1706142640804,-154.95351395,0.00044689,4]
[312669092,1706142640813,-1197.97622761,0.00044689,4]
[312669094,1706142640822,-2139.23248446,0.00044689,4]
[312669097,1706142640833,-213.28337468,0.00044691,4]
[312669099,1706142640842,-317.11742553,0.00044691,4]
[312669100,1706142640851,-267.83589458,0.00044691,4]
[312669103,1706142640860,-640.40435783,0.00044691,4]
[312669104,1706142640873,-1127.17882709,0.00044692,4]
[312669107,1706142640883,-785.17634826,0.00044692,4]
[312669109,1706142640892,-429.63161479,0.00044692,4]
[312669111,1706142640901,-170.53032681,0.00044692,4]
[312669113,1706142640910,-163.995668,0.000447,2]
[312669115,1706142640919,-500.0,0.00044709,9]
[312669116,1706142640929,-151.0,0.00044783,7]
[312669118,1706142640938,-151.0,0.00044783,7]
[312669120,1706142640947,-151.0,0.00044783,7]
[312669122,1706142640957,-151.0,0.00044783,7]
[312669124,1706142640965,-152.43521272,0.00044783,7]
[312669126,1706142640974,-151.0,0.00044783,7]
[312669128,1706142640983,-151.0,0.00044783,7]
[312669130,1706142640993,-151.0,0.00044783,7]
[312669132,1706142641002,-151.0,0.00044783,7]
[312669134,1706142641011,-151.0,0.00044783,7]
[312669137,1706142641021,-151.0,0.00044783,7]
[312669146,1706142641030,-151.0,0.00044783,7]
[312669148,1706142641107,-151.0,0.00044783,7]
[312669150,1706142641116,-151.0,0.00044783,7]
[312669152,1706142641125,-270.77916187,0.00044783,7]
[312669154,1706142641134,-298.979928,0.00044783,7]
[312669155,1706142641143,-298.979928,0.00044783,7]
[312669156,1706142641152,-298.979928,0.00044783,7]
[312669157,1706142641161,-298.979928,0.00044783,7]
[312669158,1706142641170,-298.979928,0.00044783,7]
[312669159,1706142641179,-298.979928,0.00044783,7]
[312669160,1706142641187,-298.979928,0.00044783,7]
[312669161,1706142641197,-298.979928,0.00044783,7]
[312669162,1706142641206,-298.979928,0.00044783,7]
[312669163,1706142641215,-298.979928,0.00044783,7]
[312669164,1706142641225,-298.979928,0.00044783,7]
[312669165,1706142641234,-298.979928,0.00044783,7]
[312669166,1706142641243,-298.979928,0.00044783,7]
[312669167,1706142641252,-298.979925,0.00044783,7]
[312669168,1706142641261,-1587.095918,0.00044783,7]
[312669169,1706142641270,-1587.095918,0.00044783,7]
[312669170,1706142641279,-1587.095918,0.00044783,7]
[312669171,1706142641288,-1587.095918,0.00044783,7]
[312669172,1706142641297,-1587.095918,0.00044783,7]
[312669173,1706142641306,-1587.095918,0.00044783,7]
[312669174,1706142641316,-1587.095918,0.00044783,7]
[312669175,1706142641325,-1587.095918,0.00044783,7]
[312669176,1706142641334,-1587.095918,0.00044783,7]
[312669177,1706142641344,-1587.095918,0.00044783,7]
[312669178,1706142641353,-1587.095918,0.00044783,7]
[312669179,1706142641362,-1587.095918,0.00044783,7]
[312669180,1706142641371,-1587.095918,0.00044783,7]
[312669181,1706142641380,-1587.095913,0.00044783,7]
[312669182,1706142641390,-63306.58773266,0.00044787,7]
[312669183,1706142641399,-166248.95843718,0.00044787,2]
[312669185,1706142641413,-1061.09000902,0.00044787,2]
[312669214,1706142641682,-154.86062544,0.00018659,2]
[312669216,1706142641692,-7360.81144207,0.00018661,2]
[312669219,1706142641709,-12345.35210382,0.00018661,2]
[312669220,1706142641719,-102032.42764633,0.00044787,2]
[312676926,1706143832127,-688.13841462,0.00018621,2]
[312676928,1706143832137,-154.84515485,0.00018622,2]
[312676930,1706143832147,-595.27318689,0.00018623,2]
[312676932,1706143832160,-199.30151643,0.00018624,2]
[312676934,1706143832169,-154.84515485,0.00018624,3]
[312676935,1706143832178,-2575.14305841,0.00018624,2]
[312676939,1706143832198,-689.7089677,0.00018624,2]
[312677115,1706143838180,-4865.5098759,0.00018624,2]
[312677117,1706143838190,-1267.12305076,0.00018625,2]
[312677119,1706143838200,-1741.4785695,0.00018625,2]
[312677121,1706143838210,-6290.4823525,0.00018663,2]
[312677123,1706143838219,-167.89841625,0.000199,2]
[312677125,1706143838228,-154.86062544,0.0002,2]
[312677127,1706143838238,-1198.3823456,0.0002,2]
[312677129,1706143838248,-154.84515485,0.0002,2]
[312677131,1706143838260,-850.57862657,0.00020968,2]
[312677133,1706143838270,-154.84515485,0.00020969,2]
[312677135,1706143838279,-678.88445844,0.0002097,2]
[312677137,1706143838288,-1603.05125732,0.00021,2]
[312677139,1706143838298,-2074.57916651,0.00022069,2]
[312677142,1706143838307,-426.10577832,0.0002207,2]
[312677145,1706143838316,-371.37516719,0.00022071,2]
[312677150,1706143838327,-2014.63139939,0.00022071,2]
[312677154,1706143838363,-22513.99343342,0.00022071,2]
[312677156,1706143838373,-4724.75315233,0.00025,2]
[312677158,1706143838382,-3025.74976135,0.00026842,2]
[312677160,1706143838392,-924.93932163,0.00026842,2]
[312677162,1706143838401,-2569.868198,0.00026842,2]
[312677164,1706143838411,-166.222775,0.00027597,2]
[312677166,1706143838421,-498.54555384,0.00028498,5]
[312677168,1706143838431,-1804.45,0.00029358,3]
[312677170,1706143838440,-1325.5,0.00029368,3]
[312677172,1706143838449,-1503.71,0.00029368,3]
[312677174,1706143838459,-1590.6,0.00029378,3]
[312677176,1706143838467,-2997.01420292,0.00029398,2]
[312677178,1706143838477,-470.80732048,0.00029998,2]
[312677180,1706143838486,-170.38743963,0.00029998,2]
[312677182,1706143838495,-3969.42099078,0.00029999,2]
[312677184,1706143838504,-139234.85869816,0.0003,4]
[312677186,1706143838514,-2196.43554395,0.0003,2]
[312677188,1706143838524,-231.21398044,0.0003,4]
[312677191,1706143838534,-154.86062544,0.0003,4]
[312677193,1706143838544,-243.2070347,0.0003,4]
[312677194,1706143838555,-208.4755949,0.00030137,2]
[312677196,1706143838565,-169.122159,0.00030137,2]
[312677198,1706143838574,-158.273752,0.00030137,2]
[312677200,1706143838584,-161.3011265,0.00031,4]
[312677202,1706143838594,-500.0,0.00032875,7]
[312677204,1706143838603,-500.0,0.00032875,7]
[312677207,1706143838613,-500.0,0.00032875,7]
[312677209,1706143838623,-500.0,0.00032875,7]
[312677210,1706143838632,-500.0,0.00032875,7]
[312677212,1706143838642,-203.60149118,0.00032875,7]
[312677215,1706143838652,-308.63979435,0.00032875,7]
[312677216,1706143838661,-500.0,0.00032875,7]
[312677218,1706143838670,-500.0,0.00032875,7]
[312677220,1706143838680,-500.0,0.00032875,7]
[312677222,1706143838689,-447.66368478,0.00032875,7]
[312677224,1706143838699,-500.0,0.00032875,7]
[312677226,1706143838708,-169.122159,0.00032877,2]
[312677228,1706143838717,-177.0772953,0.00034247,2]
[312677231,1706143838727,-760.47051245,0.00034283,30]
[312677232,1706143838737,-154.95351395,0.00034903,4]
[312677235,1706143838747,-156.89450249,0.00034906,4]
[312677237,1706143838759,-333.39122483,0.00035,4]
[312677239,1706143838769,-169.122159,0.00035616,2]
[312677241,1706143838780,-154.86062544,0.00036,4]
[312677243,1706143838789,-150.0,0.00037558,2]
[312677245,1706143838799,-150.086,0.00037558,2]
[312677247,1706143838808,-13362.1848325,0.00038089,4]
[312677249,1706143838818,-284.85781043,0.00038094,4]
[312677251,1706143838827,-160.0,0.000381,3]
[312677253,1706143838837,-169.122159,0.00038356,2]
[312677255,1706143838846,-160.0,0.00038382,4]
[312677256,1706143838855,-19964.68206347,0.00038414,5]
[312677259,1706143838865,-160.0,0.00038664,5]
[312677261,1706143838875,-160.0,0.00038946,6]
[312677263,1706143838884,-160.0,0.00039228,7]
[312677264,1706143838894,-1052.02919821,0.000395,7]
[312677267,1706143838904,-160.0,0.0003951,8]
[312677269,1706143838914,-160.0,0.00039792,9]
[312677271,1706143838923,-150.0,0.000399,11]
[312677273,1706143838934,-4040.09199812,0.0003999,4]
[312677275,1706143838944,-160.0,0.00040074,10]
[312677277,1706143838953,-160.0,0.00040356,11]
[312677279,1706143838962,-160.0,0.00040638,12]
[312677281,1706143838975,-160.0,0.0004092,13]
[312677283,1706143838984,-250.0,0.00041095,7]
[312677285,1706143838993,-500.0,0.00041095,2]
[312677287,1706143839003,-169.122159,0.00041096,2]
[312677289,1706143839015,-160.0,0.00041202,14]
[312677291,1706143839025,-2931.30859742,0.00041255,10]
[312677293,1706143839035,-152.20431378,0.0004142,30]
[312677295,1706143839046,-166.93328417,0.00041446,30]
[312677297,1706143839055,-152.20431378,0.00041477,30]
[312677299,1706143839064,-160.0,0.00041484,15]
[312677301,1706143839074,-154.86062544,0.00041691,4]
[312677302,1706143839084,-160.0,0.00041766,16]
[312677304,1706143839093,-160.0,0.00042048,17]
[312677307,1706143839103,-152.20431378,0.00042216,30]
[312677309,1706143839112,-462.5226715,0.0004228,120]
[312677310,1706143839122,-50000.0,0.00042281,15]
[312677312,1706143839131,-160.0,0.0004233,18]
[312677314,1706143839141,-152.20431378,0.0004243,30]
[312677316,1706143839151,-272.33947355,0.00042443,31]
[312677319,1706143839161,-500.0,0.00042443,31]
[312677320,1706143839172,-208240.08750935,0.00042444,2]
[312677322,1706143839182,-646.15465065,0.00042446,4]
[312677324,1706143839191,-500.0,0.00042465,7]
[312677326,1706143839201,-155.0993067,0.00042532,4]
[312677328,1706143839211,-260.87494487,0.00042542,4]
[312677330,1706143839220,-4593.06068613,0.00042543,14]
[312677333,1706143839230,-1253.41868812,0.00042545,4]
[312677335,1706143839239,-640.40435783,0.00042545,4]
[312677337,1706143839250,-294.57737238,0.00042545,4]
[312677339,1706143839261,-154.98449536,0.00042545,4]
[312677340,1706143839270,-166.94378863,0.00042545,4]
[312677343,1706143839279,-264.05065044,0.00042545,4]
[312677345,1706143839291,-2085.08363542,0.00042545,4]
[312677347,1706143839300,-154.9690062,0.00042545,4]
[312677349,1706143839309,-1036.23341672,0.00042545,4]
[312677351,1706143839319,-5453.77773352,0.00042546,2]
[312677353,1706143839329,-321.891523,0.00042547,4]
[312677365,1706143839434,-544.81898862,0.00042547,4]
[312677367,1706143839445,-12111.88461065,0.00042548,5]
[312677369,1706143839454,-160.0,0.00042612,19]
[312677371,1706143839464,-733.94651576,0.00042687,2]
[312677373,1706143839474,-160.0,0.00042894,20]
[312677375,1706143839483,-777.0,0.00042996,2]
[312677377,1706143839493,-151.0,0.00043041,21]
[312677379,1706143839503,-160.0,0.00043176,21]
[312677381,1706143839514,-150.84915085,0.00043335,2]
[312677382,1706143839523,-160.0,0.00043458,22]
[312677384,1706143839532,-160.0,0.0004374,23]
[312677386,1706143839542,-152.20431378,0.00043764,30]
[312677388,1706143839552,-253.93194142,0.00043835,7]
[312677390,1706143839561,-152.20431378,0.0004387,30]
[312677391,1706143839570,-160.0,0.00044022,24]
[312677392,1706143839580,-305.52840189,0.00044022,5]
[312677393,1706143839589,-301.6983017,0.00044064,4]
[312677394,1706143839599,-21690.99033113,0.00044331,4]
[312677395,1706143839608,-156.59077763,0.00044455,30]
[312677396,1706143839617,-152.20431378,0.00044544,30]
[312677397,1706143839626,-232.7383,0.00044563,2]
[312677398,1706143839636,-151.0,0.00044676,7]
[312677399,1706143839645,-151.0,0.00044676,7]
[312677400,1706143839655,-151.0,0.00044676,7]
[312677401,1706143839664,-151.0,0.00044676,7]
[312677402,1706143839673,-151.0,0.00044676,7]
[312677403,1706143839683,-151.0,0.00044676,7]
[312677404,1706143839692,-151.0,0.00044676,7]
[312677405,1706143839700,-151.0,0.00044676,7]
[312677406,1706143839708,-151.0,0.00044676,7]
[312677407,1706143839717,-151.0,0.0004469,7]
[312677408,1706143839727,-151.0,0.0004469,7]
[312677409,1706143839737,-151.0,0.0004469,7]
[312677410,1706143839747,-151.0,0.0004469,7]
[312677411,1706143839760,-151.0,0.0004469,7]
[312677412,1706143839771,-151.0,0.0004469,7]
[312677413,1706143839781,-151.0,0.0004469,7]
[312677414,1706143839791,-151.0,0.0004469,7]
[312677415,1706143839800,-151.0,0.0004469,7]
[312677416,1706143839812,-151.0,0.0004469,7]
[312677417,1706143839822,-151.0,0.0004469,7]
[312677418,1706143839831,-151.0,0.0004469,7]
[312677419,1706143839841,-151.0,0.0004469,7]
[312677420,1706143839850,-151.0,0.0004469,7]
[312677421,1706143839859,-151.0,0.0004469,7]
[312677422,1706143839869,-270.77916187,0.0004469,7]
[312677423,1706143839879,-1000.0,0.000447,2]
[312677424,1706143839888,-163.995668,0.000447,2]
[312677425,1706143839897,-216.12498295,0.00044709,15]
[312677426,1706143839907,-193.22317278,0.00044709,15]
[312677427,1706143839916,-2840.3806399,0.00044709,15]
[312677428,1706143839925,-151.0,0.00044711,7]
[312677429,1706143839935,-151.0,0.00044711,7]
[312677430,1706143839944,-151.0,0.00044711,7]
[312677431,1706143839954,-151.0,0.00044711,7]
[312677432,1706143839962,-151.0,0.00044711,7]
[312677433,1706143839972,-151.0,0.00044711,7]
[312677434,1706143839982,-151.0,0.00044711,7]
[312677435,1706143839991,-152.43521272,0.00044711,7]
[312677436,1706143840000,-211.497645,0.00044711,7]
[312677437,1706143840014,-298.979928,0.00044711,7]
[312677438,1706143840024,-298.979928,0.00044711,7]
[312677439,1706143840034,-298.979928,0.00044711,7]
[312677440,1706143840043,-298.979928,0.00044711,7]
[312677441,1706143840053,-298.979928,0.00044711,7]
[312677442,1706143840062,-298.979928,0.00044711,7]
[312677443,1706143840071,-298.979928,0.00044711,7]
[312677444,1706143840081,-298.979928,0.00044711,7]
[312677445,1706143840090,-298.979928,0.00044711,7]
[312677446,1706143840099,-298.979928,0.00044711,7]
[312677447,1706143840107,-298.979928,0.00044711,7]
[312677448,1706143840116,-298.979928,0.00044711,7]
[312677449,1706143840126,-298.979928,0.00044711,7]
[312677450,1706143840135,-298.979928,0.00044711,7]
[312677451,1706143840144,-298.979928,0.00044711,7]
[312677452,1706143840154,-298.979928,0.00044711,7]
[312677453,1706143840163,-298.979928,0.00044711,7]
[312677454,1706143840174,-298.979928,0.00044711,7]
[312677455,1706143840183,-298.979928,0.00044711,7]
[312677456,1706143840192,-298.979925,0.00044711,7]
[312677457,1706143840202,-1587.095918,0.00044711,7]
[312677458,1706143840212,-1587.095918,0.00044711,7]
[312677459,1706143840221,-1587.095918,0.00044711,7]
[312677460,1706143840230,-1587.095918,0.00044711,7]
[312677461,1706143840239,-1587.095918,0.00044711,7]
[312677462,1706143840249,-1587.095918,0.00044711,7]
[312677463,1706143840262,-1587.095918,0.00044711,7]
[312677464,1706143840271,-1587.095918,0.00044711,7]
[312677466,1706143840280,-1587.095918,0.00044711,7]
[312677468,1706143840289,-1587.095918,0.00044711,7]